bitfinex/quotes_ETHUSD_20250107
["timestamp","ask_amount","ask_price","bid_price","bid_amount"]
[1736269237354,1.2018527,3462.8,3461.5,4.3802]
[1736269237663,1.2018527,3462.8,3462.1,2.88838]
[1736269237664,1.6507697,3462.8,3462.1,2.88838]
[1736269237986,4.6507697,3462.8,3462.1,2.88838]
[1736269238188,1.3203,3462.7,3461.8,2.88859]
[1736269238493,1.3123,3462.4,3461.2,1.3777]
[1736269238857,1.3123,3462.4,3461.4,0.015]
[1736269239056,1.3123,3462.4,3461.6,0.015]
[1736269239257,1.3123,3462.4,3462.3,0.0075]
[1736269239559,1.3198,3462.4,3462.3,0.0075]
[1736269239769,1.3198,3462.4,3462.2,0.0075]
[1736269239770,0.0075,3462.3,3462.2,0.0075]
[1736269240896,1.3998,3462.7,3462.2,0.02888068]
[1736269241100,1.2018527,3463.0,3462.6,2.88792]
[1736269241389,4.6699707,3463.0,3462.7,0.0075]
[1736269241758,4.6699707,3463.0,3462.5,0.0075]
[1736269241959,3.468118,3463.0,3462.5,0.0075]
[1736269242197,1.3998,3463.1,3462.7,2.8879]
[1736269242391,1.3998,3463.1,3462.5,2.88807]
[1736269242890,0.0075,3463.0,3462.6,0.0075]
[1736269243298,1.3998,3463.1,3462.6,0.0075]
[1736269243498,1.3998,3463.1,3462.8,0.0075]
[1736269244227,1.2018527,3463.4,3462.9,0.0075]
[1736269244425,1.2018527,3463.4,3462.9,2.88768]
[1736269245215,1.2018527,3463.4,3463.0,0.0075]
[1736269245356,0.0075,3463.3,3463.0,0.0075]
[1736269245758,0.0075,3463.3,3462.8,0.0075]
[1736269246195,0.0075,3463.3,3462.2,1.3636]
[1736269246196,0.0075,3463.1,3462.2,1.3636]
[1736269246381,0.0075,3463.1,3462.5,2.88807]
[1736269247195,0.0075,3463.1,3462.2,1.3636]
[1736269247394,0.0075,3463.1,3462.6,2.88798]
[1736269248315,1.3122,3463.2,3462.8,2.88776]
[1736269248807,1.3122,3463.2,3462.6,2.88796]
[1736269248968,1.3122,3463.2,3462.7,2.88789]
[1736269250305,0.0075,3463.1,3462.7,2.88789]
[1736269250507,0.0075,3463.1,3462.8,0.02887496]
[1736269250811,1.64885648,3463.1,3462.9,0.0075]
[1736269251719,0.0075,3462.9,3462.6,0.0075]
[1736269252047,0.0075,3462.9,3462.6,2.89546]
[1736269252496,0.0075,3462.9,3462.4,0.0075]
[1736269252816,0.0075,3462.9,3461.7,2.88867]
[1736269252817,3.0075,3462.7,3461.7,2.88874]
[1736269253002,0.0075,3462.5,3461.7,2.88874]
[1736269253312,0.0075,3462.5,3461.1,1.3934]
[1736269253504,0.0075,3462.5,3461.9,2.88855]
[1736269253685,0.0075,3462.5,3462.0,2.91737096]
[1736269253886,0.0075,3462.5,3461.2,2.88911]
[1736269253887,0.0075,3462.3,3461.2,2.88911]
[1736269254106,2.74323921,3462.1,3461.4,2.88143]
[1736269254419,0.0075,3461.4,3460.9,2.8894]
[1736269255351,0.0075,3461.4,3461.0,0.0075]
[1736269255652,0.0075,3461.6,3461.0,2.89682]
[1736269257016,0.0075,3461.6,3461.1,0.0075]
[1736269257567,0.0075,3461.4,3461.1,0.0075]
[1736269258849,0.0075,3461.6,3461.1,0.0075]
[1736269259014,0.0075,3461.4,3460.7,2.88951]
[1736269259215,0.0075,3461.4,3460.6,0.58676625]
[1736269259529,0.0075,3461.6,3460.9,2.8894]
[1736269259849,0.0075,3461.4,3460.9,2.8894]
[1736269260924,1.2018527,3461.5,3461.0,0.02888924]
[1736269261134,1.2018527,3461.5,3461.4,2.8965]
[1736269261341,2.7e-06,3461.5,3461.4,4.7825]
[1736269261517,2.7e-06,3461.5,3461.4,8.08393754]
[1736269261893,1.55858038,3462.0,3461.9,4.77458]
[1736269262025,1.55858038,3462.0,3461.9,8.07601361]
[1736269262257,1.55858038,3462.0,3461.9,8.0471345]
[1736269262658,0.89,3463.2,3462.8,0.0075]
[1736269263065,0.89,3463.2,3461.9,4.6085545]
[1736269263367,0.0075,3463.1,3461.9,1.336]
[1736269263793,0.0075,3463.1,3462.6,2.88792]
[1736269264460,0.0075,3463.1,3462.7,2.88789]
[1736269265395,0.0075,3463.1,3462.6,0.0075]
[1736269265697,0.0075,3463.1,3462.7,0.0075]
[1736269266697,0.0075,3463.1,3463.0,2.88766]
[1736269267120,0.89,3463.2,3463.1,0.0075]
[1736269267301,0.89,3463.2,3463.1,2.89508]
[1736269268575,0.89,3463.2,3463.1,2.92395363]
[1736269269592,0.89,3463.2,3463.1,2.89508]
[1736269269808,3.88272033,3463.9,3463.8,2.8945]
[1736269270702,3.88272033,3463.9,3463.8,0.0075]
[1736269271077,0.8725,3463.9,3463.8,0.0075]
[1736269271378,0.88,3463.9,3463.8,0.0075]
[1736269272594,0.865,3463.9,3463.8,2.92336799]
[1736269273085,0.8725,3463.9,3463.8,2.92336799]
[1736269273282,0.8725,3463.9,3463.8,2.8945]
[1736269273494,0.865,3463.9,3463.8,2.8945]
[1736269274208,0.865,3463.9,3463.8,3.4445]
[1736269274410,0.8475,3463.9,3463.8,3.4445]
[1736269275024,0.8475,3463.9,3463.8,2.880496]
[1736269275399,0.8475,3463.9,3463.3,0.57928458]
[1736269275400,0.0075,3463.8,3463.3,0.57928458]
[1736269275712,0.24306,3463.8,3463.3,2.8874]
[1736269275890,0.24306,3463.8,3463.0,2.88766]
[1736269276220,0.24306,3463.8,3462.8,1.5566]
[1736269276424,0.8475,3463.9,3463.6,2.88709]
[1736269276590,0.8475,3463.9,3463.7,0.0288679]
[1736269276788,0.8475,3463.9,3463.6,2.88709]
[1736269277107,0.8475,3463.9,3463.8,0.0075]
[1736269277509,0.8475,3463.9,3463.5,2.88721]
[1736269277713,0.8475,3463.9,3463.6,0.0075]
[1736269278120,0.8475,3463.9,3463.1,35.0]
[1736269278121,0.8475,3463.9,3463.7,2.88706]
[1736269278284,0.8475,3463.9,3463.6,0.0075]
[1736269278828,0.54231,3463.8,3463.1,35.0]
[1736269278996,0.0075,3463.6,3462.6,1.5749]
[1736269279197,0.0075,3463.6,3462.9,2.88773]
[1736269279401,0.0075,3463.6,3463.0,2.89516]
[1736269279590,0.0075,3463.3,3463.0,2.89516]
[1736269280426,0.0075,3463.3,3461.8,1.5221]
[1736269280427,0.0075,3463.1,3461.8,1.5221]
[1736269280722,0.0075,3462.9,3462.5,2.88801]
[1736269281418,1.5575,3463.2,3462.8,2.88783]
[1736269281603,1.5575,3463.2,3463.0,0.0075]
[1736269282020,1.5575,3463.2,3462.7,0.0075]
[1736269282353,0.0075,3463.1,3463.0,2.89516]
[1736269283899,0.0075,3463.1,3463.0,0.0075]
[1736269284431,0.0075,3463.1,3463.0,2.89516]
[1736269284657,1.20368426,3463.8,3463.7,2.89458]
[1736269284836,2.05118426,3463.9,3463.8,0.0075]
[1736269285041,6.11282001,3463.9,3461.6,3.13881]
[1736269285355,3.2725545,3463.5,3463.3,2.8874]
[1736269285499,0.0075,3463.4,3463.3,2.8949]
[1736269285844,0.8475,3463.9,3463.8,2.880496]
[1736269286400,0.855,3463.9,3463.8,2.880496]
[1736269286625,0.855,3463.9,3463.8,0.0075]
[1736269287604,0.0075,3463.8,3463.3,2.88739]
[1736269287805,0.0075,3463.8,3463.3,2.87989]
[1736269288034,0.0075,3463.8,3463.4,0.0075]
[1736269288703,0.0075,3463.8,3463.4,2.92368037]
[1736269289099,0.0075,3463.8,3463.4,0.02887037]
[1736269289306,0.0075,3463.8,3462.6,2.88794]
[1736269289541,0.0075,3463.8,3463.5,2.88725]
[1736269289739,0.0075,3463.8,3463.7,0.0075]
[1736269290308,0.0075,3463.8,3463.4,2.88729]
[1736269290509,0.0075,3463.8,3463.1,2.88758]
[1736269290808,0.0075,3463.8,3461.7,1.20760441]
[1736269290809,0.0075,3463.5,3462.5,4.40588]
[1736269291035,0.0075,3463.1,3462.2,2.88829]
[1736269291234,0.0075,3463.1,3462.2,4.40609]
[1736269291421,0.0075,3463.1,3462.3,0.0075]
[1736269291718,0.0075,3463.1,3462.7,2.8879]
[1736269292029,0.0075,3463.1,3461.9,2.88858]
[1736269292030,3.2725545,3462.8,3461.9,2.88858]
[1736269292230,3.2725545,3462.8,3462.3,2.88823]
[1736269292566,0.0075,3462.7,3462.4,2.8881]
[1736269293047,0.0075,3462.7,3462.5,0.0075]
[1736269293625,0.0075,3462.7,3461.8,1.6095]
[1736269293834,0.0075,3462.2,3461.8,2.88859]
[1736269294141,0.0075,3462.2,3461.8,2.8886]
[1736269294344,4.6424,3462.6,3462.0,0.0075]
[1736269294640,4.6424,3462.6,3462.2,2.88826]
[1736269294944,0.0075,3462.5,3462.2,2.88826]
[1736269295463,1.5826,3462.9,3462.4,2.8881]
[1736269295747,0.0075,3462.8,3462.5,0.02887756]
[1736269296184,0.0075,3462.8,3462.6,0.0075]
[1736269296313,1.5826,3462.9,3462.6,2.89542]
[1736269297059,3.8475,3463.0,3462.6,0.0075]
[1736269297255,3.8475,3463.0,3462.8,2.89533]
[1736269297579,0.0075,3462.9,3462.8,2.89533]
[1736269298171,0.0075,3462.9,3462.8,35.0075]
[1736269299481,0.8475,3463.0,3462.8,35.0075]
[1736269299618,0.8475,3463.0,3462.9,2.89525]
[1736269299819,0.855,3463.0,3462.9,2.89525]
[1736269300018,0.8475,3463.0,3462.9,5.01002417]
[1736269300283,0.8475,3463.0,3462.9,4.98115]
[1736269300420,0.8475,3463.0,3462.9,4.42311657]
[1736269300777,0.855,3463.0,3462.9,2.88721657]
[1736269301982,0.8475,3463.0,3462.9,3.43721657]
[1736269302340,0.855,3463.0,3462.9,3.46608797]
[1736269302541,0.855,3463.0,3462.9,5.07148797]
[1736269303458,0.855,3463.0,3462.9,40.07148797]
[1736269303665,0.855,3463.0,3462.9,40.04261657]
[1736269305178,0.855,3463.0,3462.9,2.88071257]
[1736269307178,0.855,3463.0,3462.9,2.90958605]
[1736269307869,0.855,3463.0,3462.9,2.88071257]
[1736269308366,0.855,3463.0,3462.9,2.87420857]
[1736269308523,0.855,3463.0,3462.9,0.0075]
[1736269308727,8.68785085,3463.0,3462.9,0.0075]
[1736269308972,9.84537894,3463.0,3462.9,0.0075]
[1736269310173,14.134283,3463.0,3462.9,0.0075]
[1736269310541,0.0075,3462.9,3462.4,0.0075]
[1736269311671,0.0075,3462.9,3462.4,2.89565]
[1736269312559,0.0075,3462.9,3462.4,0.0075]
[1736269312766,0.0075,3462.9,3462.6,0.0075]
[1736269313341,0.0075,3462.9,3462.4,0.0075]
[1736269313982,0.0075,3462.9,3462.4,2.92450737]
[1736269314183,0.0075,3462.9,3462.6,0.0075]
[1736269314967,0.0075,3462.7,3462.6,0.0075]
[1736269315947,0.99422154,3462.8,3462.6,2.9243279]
[1736269316199,0.99422154,3462.8,3462.6,0.0363779]
[1736269316341,5.4115,3463.0,3462.8,0.0075]
[1736269316762,0.0075,3462.9,3462.8,2.89532]
[1736269317397,0.8475,3463.0,3462.9,2.88775]
[1736269317684,0.8475,3463.0,3462.9,2.9166239]
[1736269318182,0.8475,3463.0,3462.9,4.9915239]
[1736269318676,0.855,3463.0,3462.9,4.9915239]
[1736269318857,0.8475,3463.0,3462.9,4.9915239]
[1736269319057,0.8475,3463.0,3462.9,39.9915239]
[1736269319258,0.8475,3463.0,3462.9,39.96265]
[1736269319471,1.22116303,3463.7,3463.6,3.44466]
[1736269319666,1.22116303,3463.7,3463.6,4.98536]
[1736269320105,0.02,3463.7,3463.6,39.98536]
[1736269320782,0.0275,3463.7,3463.6,37.888156]
[1736269322099,0.0275,3463.7,3463.6,2.888156]
[1736269324769,0.0275,3463.7,3463.6,0.0075]
[1736269324970,1.5551,3463.7,3463.6,0.0075]
[1736269325196,1.71061,3463.7,3463.6,0.0075]
[1736269325405,7.59769,3463.7,3463.6,0.0075]
[1736269325972,7.67849,3463.7,3463.6,0.0075]
[1736269327302,13.67389319,3463.7,3463.6,0.0075]
[1736269327476,15.16648462,3463.7,3463.6,0.0075]
[1736269328190,17.90118623,3463.7,3463.6,0.0075]
[1736269328568,3.0075,3463.2,3462.3,2.88823]
[1736269328767,0.0075,3462.8,3462.4,0.02887853]
[1736269329762,0.0075,3462.8,3462.1,2.88838]
[1736269329966,0.0075,3462.8,3462.2,2.92464855]
[1736269330362,0.0075,3462.8,3458.4,14.28]
[1736269330363,0.0075,3462.6,3461.6,2.88883]
[1736269330577,0.0075,3461.8,3461.4,4.52617]
[1736269330807,0.0075,3461.8,3461.4,2.88897]
[1736269331104,0.0075,3461.8,3461.5,0.0075]
[1736269331662,0.0075,3461.8,3461.2,0.0075]
[1736269332112,0.0075,3461.5,3461.2,0.0075]
[1736269332466,0.0075,3461.5,3461.1,0.0075]
[1736269332700,0.0075,3461.5,3460.8,2.882926]
[1736269332869,0.0075,3461.5,3460.6,1.5388]
[1736269333075,0.0075,3461.5,3461.0,0.0075]
[1736269333868,3.27298324,3461.6,3460.9,2.88941]
[1736269334073,5.15098324,3462.0,3461.1,2.88925]
[1736269334380,5.15098324,3462.0,3461.3,0.0075]
[1736269334911,0.0075,3461.9,3461.3,2.89653]
[1736269335266,0.0075,3461.9,3461.1,2.88924]
[1736269335505,1.41310569,3461.9,3460.7,0.55]
[1736269335673,0.0075,3461.9,3461.4,0.0075]
[1736269336105,0.0075,3461.9,3461.1,2.88923]
[1736269336587,1.6328,3461.5,3460.8,2.88944]
[1736269336911,1.6328,3461.5,3460.2,2.88999]
[1736269337079,4.6328,3461.5,3460.3,0.0075]
[1736269337414,5.65411154,3461.5,3460.7,0.0075]
[1736269337582,5.65411154,3461.5,3460.7,2.89706]
[1736269337583,4.07945432,3461.5,3460.7,2.89706]
[1736269337992,4.07945432,3461.5,3460.9,0.0075]
[1736269338311,0.274,3461.7,3461.2,2.88915]
[1736269338480,1.80553419,3462.3,3461.4,0.5575]
[1736269338681,1.80553419,3462.3,3462.0,2.896]
[1736269338918,4.21430847,3463.2,3462.1,5.05642]
[1736269338919,3.65e-06,3462.2,3462.1,5.05642]
[1736269339206,3.6122644,3462.5,3462.4,3.44567]
[1736269339770,2.1682244,3462.5,3462.4,3.44567]
[1736269340421,1.20061988,3464.1,3462.6,0.0075]
[1736269340575,1.20061988,3464.1,3464.0,2.88683]
[1736269340770,1.20061988,3464.1,3464.0,5.08099447]
[1736269341088,9.88e-06,3464.1,3464.0,5.08099447]
[1736269341268,1.80092983,3464.2,3464.0,5.08099447]
[1736269341269,9.71e-06,3464.2,3464.1,3.44425]
[1736269341474,9.48e-06,3464.4,3464.3,4.97258]
[1736269341698,4.82e-06,3464.5,3464.4,3.444]
[1736269342293,4.82e-06,3464.5,3464.4,3.429996]
[1736269342812,4.82e-06,3464.5,3464.4,3.45885291]
[1736269343008,4.82e-06,3464.5,3464.4,3.429996]
[1736269343812,4.82e-06,3464.5,3464.4,3.45885294]
[1736269344174,4.82e-06,3464.5,3464.4,3.429996]
[1736269345112,4.82e-06,3464.5,3464.4,6.45884885]
[1736269345317,3.27298324,3466.7,3464.4,6.45884885]
[1736269345318,1.5895,3466.2,3465.9,0.5575]
[1736269345500,1.5895,3466.2,3466.1,0.5575]
[1736269345818,1.597,3466.2,3466.1,0.0075]
[1736269346012,1.5895,3466.2,3466.1,0.0075]
[1736269346216,1.5895,3466.2,3465.6,0.0075]
[1736269346371,1.5895,3466.2,3465.8,0.0075]
[1736269346698,3.27298324,3467.1,3466.0,0.0075]
[1736269347015,3.27298324,3467.1,3465.5,2.88557]
[1736269347016,1.96052401,3467.0,3466.3,0.0075]
[1736269347222,4.96052401,3467.0,3466.3,0.0075]
[1736269347404,1.96052401,3467.0,3466.5,0.0075]
[1736269347715,1.96052401,3467.0,3466.5,0.03634232]
[1736269348420,1.6495,3467.5,3466.5,2.92109232]
[1736269348653,1.6495,3467.5,3466.8,0.0075]
[1736269349945,0.0075,3467.4,3466.7,0.0075]
[1736269350105,0.0075,3467.4,3466.7,2.89208]
[1736269350308,0.0075,3467.4,3466.7,0.0075]
[1736269350616,0.50049832,3467.4,3466.4,0.56255472]
[1736269351341,3.27298324,3466.8,3466.1,1.6616]
[1736269351538,0.0075,3466.7,3466.0,0.5743727]
[1736269352280,0.0075,3467.1,3466.0,0.5743727]
[1736269352443,2.89177,3467.1,3466.1,0.02884489]
[1736269352601,0.49299832,3467.4,3466.1,0.57884489]
[1736269352946,1.6495,3467.5,3466.4,2.8848]
[1736269353249,4.6495,3467.5,3466.4,2.8848]
[1736269353443,4.6495,3467.5,3466.2,1.5424]
[1736269353602,4.6495,3467.5,3466.5,2.88475]
[1736269353809,0.0075,3467.4,3466.2,4.42732]
[1736269354024,0.0075,3467.2,3466.2,1.5424]
[1736269354423,0.0075,3467.2,3466.3,0.02884303]
[1736269355041,3.28048324,3467.2,3466.3,0.02884303]
[1736269355454,3.28048324,3467.2,3466.2,1.5424]
[1736269355755,1.5141,3466.3,3465.4,1.6618]
[1736269355907,1.99280832,3466.3,3465.4,1.6618]
[1736269356115,1.99280832,3466.3,3465.5,2.88558]
[1736269356565,0.0075,3466.2,3465.3,0.58769194]
[1736269356855,0.0075,3466.2,3465.4,0.02885139]
[1736269357355,1.99280832,3466.3,3465.4,2.91448139]
[1736269357653,0.52657916,3466.2,3465.4,0.02885139]
[1736269357840,0.52657916,3466.2,3465.2,2.88582]
[1736269358038,3.27298324,3466.0,3465.3,0.02885126]
[1736269358418,3.27298324,3466.0,3465.2,2.88582]
[1736269358618,3.27298324,3466.0,3465.3,2.88573]
[1736269359778,3.27298324,3466.0,3465.4,0.02885151]
[1736269359929,3.27298324,3466.0,3465.3,2.88573]
[1736269360129,3.75169156,3466.0,3465.3,2.88573]
[1736269360647,1.5141,3466.3,3465.4,0.02885152]
[1736269360845,1.6399,3466.8,3466.4,2.88481]
[1736269361044,4.91288324,3467.2,3466.5,0.02884366]
[1736269361260,4.91288324,3467.2,3466.2,2.885]
[1736269361586,3.0,3467.1,3466.2,2.885]
[1736269361880,0.79128832,3467.0,3466.2,2.885]
[1736269362186,0.79128832,3467.0,3465.8,4.45839]
[1736269362187,3.27298324,3466.8,3465.9,2.88525]
[1736269362327,3.27298324,3466.4,3465.7,2.88535]
[1736269362528,3.27298324,3466.4,3465.2,1.5731]
[1736269362880,3.76427156,3466.4,3465.6,2.88547]
[1736269363179,0.0075,3466.3,3465.4,0.5868205]
[1736269363328,3.76427156,3466.4,3465.6,2.88549]
[1736269363534,3.76427156,3466.4,3465.5,0.02884938]
[1736269363535,4.6189,3465.9,3464.9,2.88607]
[1736269363735,3.27298324,3465.2,3464.5,2.88641]
[1736269364032,3.27298324,3465.2,3464.1,1.6506]
[1736269364033,1.5792,3465.5,3465.1,2.88591]
[1736269364259,1.5792,3465.5,3465.3,2.88575]
[1736269364470,4.86558324,3466.0,3465.5,2.8855]
[1736269364657,4.86558324,3466.0,3465.1,2.88587]
[1736269365457,4.86558324,3466.0,3465.2,2.88576]
[1736269365458,5.35214156,3466.0,3465.2,2.88576]
[1736269365853,5.35214156,3466.0,3465.3,0.02885402]
[1736269366451,5.35214156,3466.0,3465.3,2.88571]
[1736269366843,5.35214156,3466.0,3465.0,0.02885404]
[1736269367038,5.35214156,3466.0,3465.2,2.88576]
[1736269367319,0.53521416,3465.9,3465.3,0.02885405]
[1736269367469,0.53521416,3465.9,3465.3,2.88573]
[1736269368458,0.53521416,3465.9,3465.3,2.91458407]
[1736269369941,1.5926,3466.0,3465.3,0.02885407]
[1736269370242,3.13359,3467.9,3465.3,0.02885407]
[1736269370243,2.88402,3467.4,3465.4,2.88566]
[1736269370450,1.5551,3466.7,3466.5,2.88467]
[1736269370982,4.5551,3466.7,3466.1,2.88506]
[1736269371708,3.27298324,3466.4,3465.4,1.6267]
[1736269371884,3.27298324,3466.4,3465.9,2.88519]
[1736269372255,3.27298324,3466.4,3466.0,2.88516]
[1736269372563,3.27298324,3466.4,3466.0,2.878656]
[1736269373355,4.05579156,3466.4,3466.0,2.878656]
[1736269373556,4.05579156,3466.4,3465.9,0.5732221]
[1736269373774,4.05579156,3466.4,3465.9,3.4584621]
[1736269373977,3.27298324,3466.4,3466.0,0.02884826]
[1736269374356,3.27298324,3466.4,3466.1,2.88508]
[1736269375190,3.27298324,3466.4,3466.0,0.02884826]
[1736269375385,3.27298324,3466.4,3465.9,3.4584421]
[1736269375590,3.27298324,3466.4,3465.9,0.5732221]
[1736269375788,0.32729832,3466.3,3465.9,3.4584621]
[1736269376114,4.83638324,3466.0,3465.4,2.88559]
[1736269376458,4.83638324,3466.0,3465.5,2.88555]
[1736269376694,4.83638324,3466.0,3465.2,0.56935288]
[1736269376859,4.83638324,3466.0,3465.5,2.88554]
[1736269377061,3.27298324,3465.6,3465.0,1.6106]
[1736269377580,5.3527514,3466.0,3465.2,2.88583]
[1736269377870,5.3527514,3466.0,3465.1,2.88591]
[1736269378076,5.3527514,3466.0,3465.4,2.88564]
[1736269378511,5.3527514,3466.0,3465.5,2.91441245]
[1736269379489,5.3527514,3466.0,3465.6,2.88548]
[1736269379860,5.3527514,3466.0,3465.1,3.45774611]
[1736269379861,5.3527514,3466.0,3465.4,2.88563]
[1736269380160,0.53527514,3465.9,3465.6,2.88547]
[1736269380512,0.53527514,3465.9,3465.5,2.88552]
[1736269380675,0.53527514,3465.9,3465.3,2.88571]
[1736269380856,0.53527514,3465.9,3465.2,2.88577]
[1736269381190,3.27298324,3465.6,3465.3,2.88572]
[1736269381409,3.27298324,3465.6,3465.1,0.57183611]
[1736269381620,4.83638324,3466.0,3465.1,0.57183611]
[1736269381818,1.6047,3466.4,3465.2,1.6745537]
[1736269382117,1.6047,3466.4,3465.9,2.88522]
[1736269382262,1.6047,3466.4,3466.0,2.88514]
[1736269382875,1.6047,3466.4,3465.4,2.89316]
[1736269383128,2.39246832,3466.4,3465.9,2.878706]
[1736269383334,3.27298324,3466.3,3465.1,0.57183611]
[1736269383499,3.27298324,3465.9,3465.3,2.88568]
[1736269384009,3.27298324,3465.9,3465.1,0.57183611]
[1736269384218,3.27298324,3465.9,3465.4,2.88566]
[1736269384382,3.27298324,3465.9,3465.5,0.02885248]
[1736269384795,3.27298324,3465.9,3465.4,2.88566]
[1736269385130,3.27298324,3465.9,3465.5,2.91443248]
[1736269385283,3.27298324,3465.9,3465.5,2.88558]
[1736269385682,3.27298324,3465.9,3465.1,0.57183611]
[1736269386219,3.27298324,3465.9,3465.4,2.88563]
[1736269387250,3.75184156,3465.9,3465.4,2.88563]
[1736269387512,3.75184156,3465.9,3465.1,0.57183611]
[1736269387850,3.75184156,3465.9,3465.3,2.88574]
[1736269388913,3.75184156,3465.9,3465.3,2.879236]
[1736269389955,3.75184156,3465.9,3465.4,2.91450315]
[1736269391023,0.37518416,3465.8,3465.2,2.89331]
[1736269391359,0.37518416,3465.8,3465.3,2.88572]
[1736269391852,0.37518416,3465.8,3465.4,2.91449323]
[1736269392053,1.5156,3466.2,3465.5,0.0075]
[1736269392212,4.46538939,3466.7,3466.0,2.8851]
[1736269392412,1.5538,3466.6,3466.1,0.02884796]
[1736269392954,1.5538,3466.6,3466.0,2.8851]
[1736269393657,4.46538939,3466.7,3466.2,2.88492]
[1736269393860,5.54878879,3466.7,3466.3,2.8849]
[1736269394160,1.19240615,3466.7,3466.5,2.88468]
[1736269394364,1.19240615,3467.0,3466.3,1.6245]
[1736269394518,4.19240615,3467.0,3466.2,2.88496]
[1736269394717,4.19240615,3467.0,3465.8,4.50977]
[1736269394718,3.27298324,3466.7,3465.8,4.50977]
[1736269394942,3.27298324,3466.7,3466.0,0.0075]
[1736269395147,3.27298324,3466.7,3465.4,2.86530441]
[1736269395148,3.0,3466.6,3465.4,2.86530441]
[1736269395364,1.607,3466.5,3466.1,2.88506]
[1736269395531,1.607,3466.5,3466.2,2.88496]
[1736269396065,1.5797,3466.8,3466.4,2.88483]
[1736269396219,1.5797,3466.8,3466.1,0.02884568]
[1736269396422,1.5797,3466.8,3466.2,0.0075]
[1736269396626,1.5797,3467.1,3466.7,2.88458]
[1736269396872,1.5797,3467.1,3466.8,0.02884417]
[1736269397079,1.5797,3467.1,3466.6,0.0075]
[1736269397401,1.5797,3467.1,3466.7,35.0]
[1736269397524,1.5797,3467.1,3466.8,0.02884202]
[1736269397956,1.5797,3467.1,3466.1,0.0075]
[1736269398158,1.5797,3467.1,3466.6,0.0075]
[1736269398361,3.0,3467.2,3467.0,0.0075]
[1736269398669,3.0,3467.2,3466.9,2.8844]
[1736269398978,3.47625821,3467.2,3466.9,2.8844]
[1736269399278,3.0,3467.2,3466.9,37.8844]
[1736269399569,4.598,3467.4,3466.9,37.8844]
[1736269400158,4.598,3467.4,3466.9,35.0]
[1736269400846,4.598,3467.4,3466.6,2.88459]
[1736269401037,4.598,3467.4,3466.7,2.88457]
[1736269401245,0.78597291,3467.3,3466.7,2.88457]
[1736269401640,1.598,3467.4,3466.8,0.0288432]
[1736269401861,1.19240615,3467.6,3467.3,2.88408]
[1736269402395,1.19240615,3467.6,3467.4,37.88399]
[1736269402878,1.19240615,3468.2,3467.8,0.0075]
[1736269403382,1.19240615,3468.2,3467.8,2.89111]
[1736269403881,1.19240615,3468.2,3467.7,2.88368]
[1736269404081,1.97242014,3468.2,3467.7,2.88368]
[1736269404282,1.97242014,3468.2,3467.4,35.0]
[1736269404455,0.78001399,3468.2,3467.8,2.88364]
[1736269405069,0.78001399,3468.2,3467.9,2.88355]
[1736269405251,3.0,3468.3,3468.0,2.88346]
[1736269405985,3.0,3468.3,3467.8,2.88367]
[1736269406309,3.0,3468.3,3467.9,2.88358]
[1736269406784,3.0,3468.3,3467.7,2.88373]
[1736269407006,3.0,3468.3,3467.1,2.88424]
[1736269407007,1.664,3467.9,3467.1,2.88424]
[1736269407184,3.26172911,3467.6,3466.9,2.88442]
[1736269407349,3.0,3467.5,3466.8,1.20760441]
[1736269407548,3.26172911,3467.2,3466.8,1.20760441]
[1736269407951,3.26172911,3467.2,3466.8,1.20110041]
[1736269408264,3.26172911,3467.2,3466.3,2.88485]
[1736269408450,0.78098091,3467.1,3466.3,2.88485]
[1736269408864,1.664,3467.0,3466.3,2.88485]
[1736269409517,3.26172911,3466.8,3465.7,4.46161]
[1736269409817,3.26172911,3466.8,3466.1,2.878546]
[1736269410018,3.26172911,3466.8,3465.9,2.88522]
[1736269410308,3.26172911,3466.4,3466.0,0.0075]
[1736269410510,1.5996,3466.3,3465.5,37.88555]
[1736269410709,3.26172911,3466.0,3465.5,35.0]
[1736269412026,3.26172911,3466.0,3465.6,0.015]
[1736269412368,3.26172911,3466.0,3465.6,2.90049]
[1736269413127,3.26172911,3466.0,3465.6,0.015]
[1736269415517,3.26172911,3466.0,3465.0,1.6292]
[1736269415518,3.74786202,3466.0,3465.8,0.015]
[1736269416197,3.74786202,3466.0,3465.9,35.015]
[1736269416591,3.74786202,3466.0,3465.9,0.015]
[1736269417729,3.74786202,3466.0,3465.9,35.015]
[1736269417880,3.74786202,3466.0,3465.4,2.88565]
[1736269418232,3.74786202,3466.0,3465.2,2.89332]
[1736269418375,0.3747862,3465.9,3465.2,2.89332]
[1736269418577,0.3747862,3465.9,3465.3,2.88574]
[1736269419008,0.3747862,3465.9,3465.6,0.0075]
[1736269419208,1.5779,3465.8,3465.1,2.8859]
[1736269419415,2.73121397,3465.3,3464.9,2.88605]
[1736269419634,2.73121397,3465.3,3464.8,2.88615]
[1736269419796,2.73121397,3465.3,3464.4,4.4472]
[1736269419993,2.73121397,3465.3,3464.9,2.88608]
[1736269420332,2.73121397,3465.3,3465.1,0.0075]
[1736269420681,2.73121397,3465.3,3464.8,2.88608]
[1736269421093,2.73121397,3465.3,3465.0,0.0075]
[1736269422099,2.73121397,3465.3,3465.1,35.0]
[1736269422828,2.73121397,3465.3,3465.2,0.015]
[1736269423036,3.00433537,3465.3,3465.2,0.0075]
[1736269423331,4.63023537,3465.3,3465.2,0.0075]
[1736269423775,10.51598537,3465.3,3465.2,0.0075]
[1736269423917,3.0,3465.2,3463.8,2.88698]
[1736269424119,3.0,3465.2,3463.6,2.8871]
[1736269424120,2.73121397,3463.9,3463.6,2.8871]
[1736269424463,2.73121397,3464.2,3463.8,35.0]
[1736269424631,2.73121397,3464.2,3464.0,0.0075]
[1736269425354,2.73121397,3464.2,3463.9,0.0075]
[1736269425736,2.73121397,3464.2,3463.5,1.20512959]
[1736269425737,2.73121397,3463.9,3463.5,1.20512959]
[1736269426273,2.73121397,3463.9,3463.4,0.0075]